Cogmind - Beta 13 @@@ ROGUE MODE // 2024.04.25 @ 13:24:10 Player: e.v.o Result: Self-destructed Performance ------------- Evolutions (2) 1000 Regions Visited (5) 1000 Robots Destroyed (6) 30 Value Destroyed (147) 147 Prototype IDs (2) 40 Alien Tech Used (0) 0 Bonus (348) 348 TOTAL SCORE: 2565 Bonus ------- Follower Combat Kills 48 Aligned with FarCom 300 Cogmind --------- Core Integrity 520/550 Matter 210/300 Energy 100/100 System Corruption 0% Temperature Cool (0) Movement Hovering (160) Ox1 Location -8/Materials Parts ------- > --- POWER (1) -------- (None) > --- PROPULSION (4) --- Titanium Leg Combat Airjet > --- UTILITY (3) ------ Small Storage Unit Trap Reconfigurator > --- WEAPON (3) ------- High-powered Shotgun Rocket Launcher Axe > --- INVENTORY (8) ---- Light Ion Engine Advanced Visual Processing Unit Improved Signal Interpreter Heavy Particle Cannon YOLO Cannon Mini Grenade Launcher Peak State ------------ > --- POWER ------------ Light Deuterium Engine > --- PROPULSION ------- Combat Airjet Combat Airjet > --- UTILITY ---------- Small Storage Unit Trap Reconfigurator > --- WEAPON ----------- YOLO Cannon > --- INVENTORY -------- Light Ion Engine Flight Unit Flight Unit Flight Unit Flight Unit Large Matter Pod Mini Grenade Launcher Mini Grenade Launcher [Rating: 44] Favorites ----------- Power Light Deuterium Engine Engine Light Deuterium Engine Propulsion Combat Airjet Leg Aluminum Leg Wheel Compact Wheel Hover Unit Combat Airjet Flight Unit Flight Unit Utility Small Storage Unit Device Trap Reconfigurator Storage Small Storage Unit Processor Signal Interpreter Protection Improved Light Armor Plating Weapon Medium Laser Energy Gun Medium Laser Energy Cannon YOLO Cannon Ballistic Gun High-powered Shotgun Launcher Mini Grenade Launcher Slashing Weapon Axe Build | -11 -10 -10 -10 -9 -8 ------- Run | Yrd Mat Min Exi Min Mat Slots Evolved 4 | . . . . . 4 Power . | . . . . . . Propulsion 2 | . . . . . 2 Utility 1 | . . . . . 1 Weapon 1 | . . . . . 1 Parts Attached 33 | 6 2 11 6 1 7 Power 4 | 1 1 2 . . . Engine 4 | 1 1 2 . . . Core . | . . . . . . Reactor . | . . . . . . Propulsion 11 | 2 . 5 . . 4 Treads . | . . . . . . Leg 3 | 2 . . . . 1 Wheel 2 | . . 2 . . . Hover 4 | . . 3 . . 1 Flight 2 | . . . . . 2 Utility 7 | 1 1 1 3 . 1 Device 2 | . . . 1 . 1 Storage 2 | 1 . . 1 . . Processor 1 | . 1 . . . . Hackware . | . . . . . . Protection 2 | . . 1 1 . . Artifact . | . . . . . . Weapon 11 | 2 . 3 3 1 2 Energy Gun 4 | 2 . 1 1 . . Energy Cannon 1 | . . . 1 . . Ballistic Gun 1 | . . . . . 1 Ballistic Cannon . | . . . . . . Launcher 4 | . . 2 1 1 . Special Weapon . | . . . . . . Impact Weapon . | . . . . . . Slashing Weapon 1 | . . . . . 1 Piercing Weapon . | . . . . . . Special Melee Weapon . | . . . . . . Unidentified Prototypes 2 | . . . 2 . . Parts Lost 9 | . . 6 . . 3 Power 3 | . . 2 . . 1 Propulsion 3 | . . 2 . . 1 Utility 1 | . . . . . 1 Weapon 2 | . . 2 . . . Highest Loss Streak 4 | . . 4 . . 3 To Critical Strikes . | . . . . . . Average Slot Usage (%) 96 | . 90 79 99 100 97 Engine 12 | . 14 11 14 14 9 Leg 5 | . 28 5 . . 4 Hover 21 | . . 11 28 28 22 Flight 1 | . . . . . 7 Device 7 | . . . 2 14 17 Storage 13 | . 14 14 14 14 9 Processor 1 | . 4 10 . . . Protection 4 | . . 3 11 . . Energy Gun 13 | . 28 8 13 14 2 Ballistic Gun 1 | . . . . . 6 Launcher 10 | . . 5 13 14 9 Slashing Weapon 1 | . . . . . 8 Naked Turns . | . . . . . . Heaviest Build 29 | 12 12 16 29 17 22 Greatest Support 32 | 20 20 32 24 24 31 Greatest Overweight (x) 2 | 2 . . 1 . . Average Overweight (x) . | . . . . . . Largest Inventory Capacity 8 | 8 8 8 8 8 8 Average Capacity 7 | 7 8 8 8 8 8 Most Carried 8 | 3 8 8 8 8 8 Average Carried 7 | 1 7 5 7 7 7 Final Capacity 8 | 8 8 8 8 8 8 Final Carried 8 | 3 8 6 8 8 7 Class Distribution -------------------- 58% | Scavenger-Mutant 41% | Mutant Dominant Class ---------------- Mutant | -10/Materials Scavenger-Mutant | -10/Mines Scavenger-Mutant | -10/Exiles Mutant | -9/Mines Scavenger-Mutant | -8/Materials Resources | -11 -10 -10 -10 -9 -8 ----------- Run | Yrd Mat Min Exi Min Mat Matter Collected 551 | 215 51 130 68 18 69 Remotely . | . . . . . . Salvage Created 195 | . 51 50 . . 94 Parts 9 | . 3 . . . 6 Haulers Intercepted 1 | . . . . . 1 Recyclers Shooed . | . . . . . . Parts Field Recycled . | . . . . . . Retrieved Matter . | . . . . . . Parts Self-Destructed . | . . . . . . Prevented . | . . . . . . Kills | -11 -10 -10 -10 -9 -8 ------- Run | Yrd Mat Min Exi Min Mat Combat Hostiles Destroyed 16 | . 1 14 . . 1 Guns 3 | . 1 1 . . 1 AOE 13 | . . 13 . . . Classes Destroyed 6 | . 2 1 . . 3 Worker 1 | . . . . . 1 Tunneler 1 | . . . . . 1 Hauler 1 | . . . . . 1 Watcher 1 | . 1 . . . . Grunt 2 | . 1 . . . 1 Assembled 14 | . . 14 . . . Best Kill Streak 14 | . 1 14 . . 3 Combat Bots Only 14 | . 1 14 . . 1 Max Kills in Single Turn 7 | . 1 7 . . 1 Gunslinging . | . . . . . . Exploded 7 | . . 7 . . . Melee . | . . . . . . Uniques/NPCs Destroyed . | . . . . . . Combat | -11 -10 -10 -10 -9 -8 -------- Run | Yrd Mat Min Exi Min Mat Hostile Shots Fired 64 | . 4 38 . . 22 Missed 17 | . 2 10 . . 5 Damage Taken 1013 | . 23 661 . . 329 Core 279 | . . 249 . . 30 Absorbed by Shields . | . . . . . . Core Remaining (%) 50 | 100 . . . . . Volleys Fired 27 | . 10 6 . . 11 Largest 2 | . 2 2 . . 2 Hottest 100 | . 100 80 . . 58 Shots Fired 44 | . 20 9 . . 15 Gun 37 | . 20 6 . . 11 Cannon . | . . . . . . Launcher 7 | . . 3 . . 4 Special . | . . . . . . Kinetic 11 | . . . . . 11 Thermal 26 | . 20 6 . . . Explosive 7 | . . 3 . . 4 Electromagnetic . | . . . . . . Robot Hit Streak 4 | . 3 3 . . 4 Robot Miss Streak 5 | . 5 1 . . 2 Penetration Max . | . . . . . . Secondary Targets . | . . . . . . Shots Hit Robots 24 | . 8 5 . . 11 Core Hits 52 | . 3 37 . . 12 Critical Kills . | . . . . . . Critical Parts Destroyed . | . . . . . . Critical Strikes . | . . . . . . Melee Attacks 4 | . . . . . 4 Impact . | . . . . . . Slashing 4 | . . . . . 4 Piercing . | . . . . . . Sneak Attacks 1 | . . . . . 1 Combat Hostiles . | . . . . . . Follow-up Attacks . | . . . . . . Damage Inflicted 1540 | . 99 875 . . 566 Guns 249 | . 99 37 . . 113 Cannons . | . . . . . . Explosions 1172 | . . 838 . . 334 Melee 119 | . . . . . 119 Ramming . | . . . . . . Kinetic 113 | . . . . . 113 Thermal 136 | . 99 37 . . . Explosive 1172 | . . 838 . . 334 Electromagnetic . | . . . . . . Impact . | . . . . . . Slashing 119 | . . . . . 119 Piercing . | . . . . . . Highest Corruption 2 | . . 2 2 2 . Average Corruption 2 | . . 2 2 2 . Corruption Purged . | . . . . . . Corruption Blocked . | . . . . . . Effects 13 | . . 3 5 5 . Message Errors 4 | . . . 3 1 . Matter Fused 5 | . . 1 1 3 . Heat Flow Errors 2 | . . 1 . 1 . Data Loss (minor) 1 | . . . 1 . . Data Loss (major) 1 | . . 1 . . . Overload Shots . | . . . . . . Overflow Damage 8 | . . 8 . . . Projectiles . | . . . . . . Explosions 8 | . . 8 . . . Melee . | . . . . . . Knockbacks . | . . . . . . Impact . | . . . . . . Kinetic . | . . . . . . Secondary . | . . . . . . Self-Inflicted Damage 27 | . . 27 . . . Shots 3 | . . 3 . . . Rammed . | . . . . . . Targets Rammed . | . . . . . . Kicked . | . . . . . . Crushed . | . . . . . . Highest Temperature 252 | . 84 221 . 252 15 Average Temperature 65 | . 41 82 . 127 7 Received Heat Transfer 207 | . 12 60 . . 135 Effects 2 | . . 2 . . . Interference 2 | . . 2 . . . Siege Activations . | . . . . . . Robots Corrupted . | . . . . . . Combat Hostiles . | . . . . . . Parts Fried . | . . . . . . Impact Corruptions . | . . . . . . Robots Melted . | . . . . . . Combat Hostiles . | . . . . . . Parts Melted . | . . . . . . Heat Transferred 407 | . 296 111 . . . Parts Sabotaged . | . . . . . . Parts Stolen . | . . . . . . Parts Stripped . | . . . . . . Power Chain Reactions . | . . . . . . Alert | -11 -10 -10 -10 -9 -8 ------- Run | Yrd Mat Min Exi Min Mat Peak Influence 146 | . 71 27 . 59 146 Initial 27 | . . 27 . . 14 Average 26 | . 44 2 . 22 34 Maximum Alert Level . | . . . . . . Low Security (%) 100 | 100 100 100 . 100 100 Level 1 . | . . . . . . Level 2 . | . . . . . . Level 3 . | . . . . . . Level 4 . | . . . . . . Level 5 . | . . . . . . High Security . | . . . . . . Max Security . | . . . . . . Squads Dispatched 2 | . 1 . . . 1 Investigation 1 | . 1 . . . . Extermination . | . . . . . . Reinforcement 1 | . . . . . 1 Assault . | . . . . . . Garrison . | . . . . . . Intercept . | . . . . . . Searches Triggered . | . . . . . . Construction Impeded 1 | . . . . . 1 Haulers Reinforced . | . . . . . . Active Scanning Responses . | . . . . . . Cargo Convoy Interrupts . | . . . . . . Stealth | -11 -10 -10 -10 -9 -8 --------- Run | Yrd Mat Min Exi Min Mat Distress Signals 1 | . 1 . . . . Communications Jammed . | . . . . . . Distress Signals . | . . . . . . Times Spotted 35 | . 4 22 . . 9 Peak Tracking Total 20 | . 3 20 . . 4 Tactical Retreats 1 | . . . . . 1 Traps | -11 -10 -10 -10 -9 -8 ------- Run | Yrd Mat Min Exi Min Mat Traps Triggered 1 | . 1 . . . . Indirectly . | . . . . . . Trap Hack Attempts . | . . . . . . Triggered . | . . . . . . Disarmed . | . . . . . . Reprogrammed . | . . . . . . Reused 4 | . . . . . 4 Traps Reconfigurated 6 | . . . . . 6 Traps Extracted . | . . . . . . Installed . | . . . . . . Triggered 4 | . . . . . 4 Machines | -11 -10 -10 -10 -9 -8 ---------- Run | Yrd Mat Min Exi Min Mat Machines Disabled 4 | . . . . . 4 Max in Single Turn 2 | . . . . . 2 Machines Repaired . | . . . . . . Machines Dismantled . | . . . . . . Machines Sabotaged . | . . . . . . Overloaded Fab Kills . | . . . . . . Hacking | -11 -10 -10 -10 -9 -8 --------- Run | Yrd Mat Min Exi Min Mat Machines Accessed 3 | . 1 . . . 2 Terminals 3 | . 1 . . . 2 Fabricators . | . . . . . . Repair Stations . | . . . . . . Recycling Units . | . . . . . . Scanalyzers . | . . . . . . Garrison Access . | . . . . . . Total Hacks 9 | . 2 . . . 7 Successful 5 | . 1 . . . 4 Failed 4 | . 1 . . . 3 Catastrophic 1 | . 1 . . . . Database Lockouts . | . . . . . . Manual 1 | . . . 1 . . Terminals 9 | . 2 . . . 7 Fabricators . | . . . . . . Repair Stations . | . . . . . . Recycling Units . | . . . . . . Scanalyzers . | . . . . . . Garrison Access . | . . . . . . Terminal Hacks 5 | . 1 . . . 4 Emergency Access Points 1 | . . . . . 1 Unreport Threat 1 | . . . . . 1 Locate Traps 1 | . . . . . 1 Hauler Manifests 1 | . . . . . 1 Zone Layout 1 | . 1 . . . . Fabricator Hacks . | . . . . . . Repair Station Hacks . | . . . . . . Recycling Unit Hacks . | . . . . . . Scanalyzer . | . . . . . . Garrison Access Hacks . | . . . . . . Unauthorized Hacks . | . . . . . . Terminals . | . . . . . . Fabricators . | . . . . . . Repair Stations . | . . . . . . Recycling Units . | . . . . . . Scanalyzers . | . . . . . . Garrison Access . | . . . . . . Data Cores Recovered . | . . . . . . Used . | . . . . . . Hacking Detections 3 | . 1 . . . 2 Full Trace Events . | . . . . . . Feedback Events . | . . . . . . Feedback Blocked . | . . . . . . Robot Schematics Acquired . | . . . . . . Robots Built . | . . . . . . Authchips . | . . . . . . Time . | . . . . . . Total Robot Build Rating . | . . . . . . Part Schematics Acquired . | . . . . . . Parts Built . | . . . . . . Authchips . | . . . . . . Time . | . . . . . . Total Part Build Rating . | . . . . . . Parts Repaired . | . . . . . . Time . | . . . . . . Parts Recycled . | . . . . . . Recycled Matter . | . . . . . . Retrieved Matter . | . . . . . . Retrieved Components . | . . . . . . Parts Scanalyzed . | . . . . . . Part Schematics Acquired . | . . . . . . Parts Damaged . | . . . . . . Bothacking | -11 -10 -10 -10 -9 -8 ------------ Run | Yrd Mat Min Exi Min Mat Used RIF Installer . | . . . . . . Robots Hacked . | . . . . . . Non-combat . | . . . . . . Combat . | . . . . . . Robot Hacks Applied . | . . . . . . Relay Couplers Released . | . . . . . . Fabnet Peak Effective % . | . . . . . . Robots Rewired . | . . . . . . Allies Hacked . | . . . . . . Hacks Repelled . | . . . . . . Allies | -11 -10 -10 -10 -9 -8 -------- Run | Yrd Mat Min Exi Min Mat Total Allies 6 | . . 3 . 3 . Largest Group 3 | . . 2 1 3 1 Highest-Rated Group 45 | . . 45 31 40 16 Highest-Rated Ally 31 | . . 31 31 16 16 Total Orders 2 | . . . . 2 . ROAM 1 | . . . . 1 . FOLLOW 1 | . . . . 1 . Ally Attacks 16 | . . 2 . 6 8 Total Damage 208 | . . 44 . 56 108 Kills 5 | . . . . 3 2 Allies Corrupted . | . . . . . . Allies Melted . | . . . . . . Intel | -11 -10 -10 -10 -9 -8 ------- Run | Yrd Mat Min Exi Min Mat Robot Analysis Total . | . . . . . . Derelict Logs Recovered . | . . . . . . Drone Launches . | . . . . . . Drone Recoveries . | . . . . . . Exploration | -11 -10 -10 -10 -9 -8 ------------- Run | Yrd Mat Min Exi Min Mat Turns Passed 1517 | 59 232 117 501 339 269 Spaces Moved 1332 | 40 159 90 577 268 198 Core 8 | 8 . . . . . Treads . | . . . . . . Legs 207 | 32 159 16 . . . Wheels 24 | . . 24 . . . Hover 1093 | . . 50 577 268 198 Flight . | . . . . . . Fastest Speed 50 | 50 120 77 77 77 66 Average Speed 84 | 118 120 90 77 77 75 Slowest Speed 150 | 150 120 120 147 77 87 Overloaded Moves . | . . . . . . Propulsion Burnouts . | . . . . . . Robots Hopped . | . . . . . . Cave-ins Triggered . | . . . . . . Exploration Rate (%) 36 | 5 27 32 91 47 15 Regions Visited 5 Branch Regions 3 Pre-discovered Areas 1 | . . . . 1 . Known Exits Taken 1 | . 1 . . . . Unknown Exits Taken 4 | 1 . 1 1 1 . Scrap Searched 1 | . . . . 1 . Spaces Dug . | . . . . . . Terrain Destroyed 32 | . . 24 . . 8 Melee . | . . . . . . Projectile . | . . . . . . AOE 32 | . . 24 . . 8 Terrain Rammed . | . . . . . . Walls Destroyed . | . . . . . . Machines Disabled . | . . . . . . Actions | -11 -10 -10 -10 -9 -8 --------- Run | Yrd Mat Min Exi Min Mat Total 1667 | 48 181 113 631 400 294 Wait 238 | . 1 2 40 130 65 Move 1327 | 39 158 89 576 267 198 Hop . | . . . . . . Pick Up 19 | 3 7 2 2 1 4 Fast Attach 19 | 6 1 4 4 . 4 Attach 7 | . . 4 1 . 2 Detach 1 | . . . 1 . . Swap 7 | . 1 3 1 1 1 Drop 18 | . 3 3 6 1 5 Fire 27 | . 10 6 . . 11 Melee 4 | . . . . . 4 Ram . | . . . . . . Kick . | . . . . . . Crush . | . . . . . . Escape Stasis . | . . . . . . Rewire . | . . . . . . Trap . | . . . . . . Miscellaneous . | . . . . . . Route ------- -11/Scrapyard -10/Materials -10/Mines -10/Exiles (discovered 2 exits: [*Min x2]) -9/Mines -8/Materials History --------- Turn | Location | Event 7 | -11/Scrapyard | Discovered new exit (range 16) 60 | -11/Scrapyard | Entered Materials 267 | -10/Materials | Discovered new exit (range 7) 274 | -10/Materials | Identified exit to Mines 292 | -10/Materials | Entered Mines 293 | -10/Mines | Assembled infested the area 305 | -10/Mines | Met 8R-AWN 307 | -10/Mines | Core integrity fell below 50% 327 | -10/Mines | Destroyed 14 combat bots 338 | -10/Mines | Lost 4 parts (1p1n2w) 352 | -10/Mines | Core integrity fell below 20% 387 | -10/Mines | Received a Mining Laser from a helpful Derelict 406 | -10/Mines | Discovered new exit (range 5) 409 | -10/Mines | Entered Exiles 409 | -10/Exiles | Accompanied by 1 ally 432 | -10/Exiles | Discovered new exit (range 14) 475 | -10/Exiles | Welcomed by 8R-AWN 488 | -10/Exiles | Met EX-HEX 520 | -10/Exiles | Met EX-DEC 601 | -10/Exiles | Discovered new exit (range 14) 608 | -10/Exiles | Build established: Scavenger-Mutant 663 | -10/Exiles | Visited The Gauntlet 762 | -10/Exiles | Met EX-BIN 775 | -10/Exiles | Aligned with FarCom system 776 | -10/Exiles | Given EX-Vault access code 802 | -10/Exiles | Opened EX-Vault 812 | -10/Exiles | Found Prototype Device 812 | -10/Exiles | Identified Trap Reconfigurator 818 | -10/Exiles | Found Prototype Energy Cannon 818 | -10/Exiles | Identified YOLO Cannon 854 | -10/Exiles | Warned to stay clear of 0b10 Research branches 910 | -10/Exiles | Stole two prototypes: Trap Reconfigurator, YOLO Cannon 910 | -10/Exiles | Entered Mines 911 | -9/Mines | Learned location of Storage (-8) 961 | -9/Mines | Assisted by bots powering up and referring to "LRC-V3" 1052 | -9/Mines | Received a Rocket Launcher from a helpful Derelict 1175 | -9/Mines | Discovered new exit (range 3) 1249 | -9/Mines | Entered Materials 1249 | -8/Materials | Accompanied by 1 ally 1249 | -8/Materials | Evolved 4 slots: Propulsion x2, Utility x1, Weapon x1 1360 | -8/Materials | Build established: Mutant 1518 | -8/Materials | Self-destructed Last Messages --------------- 01503_ U-05 Engineer lays Concrete. 01503_ Reaction Control System destroyed. 01504_ U-05 Engineer lays Concrete. 01505_ K-01 Serf collects debris. 01506_ U-05 Engineer lays Concrete. 01508_ Critical hit (Burn: +37). 01508_ Imp. Hover Unit destroyed. 01508_ U-05 Engineer lays Concrete. 01509_ R-06 Scavenger collects Prototype Hover Unit. 01509_ Terminal disabled. 01509_ U-05 Engineer lays Concrete. 01512_ Cmb. Airjet severed. 01512_ K-01 Serf collects debris. 01512_ U-05 Engineer lays Concrete. 01513_ R-06 Scavenger collects Prototype Engine. 01514_ U-05 Engineer lays Concrete. 01516_ K-01 Serf collects debris. 01516_ U-05 Engineer lays Concrete. 01517_ Lgt. Deuterium Engine destroyed. Map ----- +----------------------------------------------------+ | ??????????????????????????????????????? | | ??????????????????????????????????????? | | ????????????????????" ???????????????? | | ???????????????????? ???????????????? | | ???????????????????? ???????????????? | | ????????????????????" ????????? ????? | | ??????????????????""" """? ?"" ?????? | | ????????????????? """ ? """ ?????? | | ????????????????? """ ?????? | | ?????????????#??? %= ??????? | | ?????????????# = ??????? | | ?????????? ??# """ " """? #??? | | ?????????? # " u " """ #??? | | ??????????? / """ #??? | | ?????????????# "" """ #??? | | ?????????????# % k #??? | | ?????????????# g #??? | | ???????????????##+ =gk r #??? | | ????????????????? #??? | | ?????????????????? #??? | | ???????????????????! #??? | | ???????????????????? #??? | | ?????????????????????# """ #??? | | ?????????????????????# """ #??? | | ?????????????????????# l= """ #??? | | ?????????????????????# @ #??? | | ?????????w???????????# = #??? | | ??????????????Y??????+ #??? | | ?????????????????????#########k= ###??? | | ?????????????????????????????#= =#????? | | ?????????????????# ######! #????? | | ????????????????????""" / !*[=[^^#????? | | ????????????????????""" ######= #????? | | ?????????????????????????????## #????? | | ??????????????????????????????# ###??? | | ??????????????????????????????# #??? | | ??????????????????????????????# #??? | | ??????????????????????????????# #??? | | ??????????????g???????????????# #??? | | ??????????????^???????????????# #??? | | ??????????????^??????########## #??? | | ?????????????????????# "T" # #??? | | ?????????????????????# # #??? | | ?????????????????????+ # #??? | | ?????????????????????# + #??? | | ?????????????????????# # ####??? | | ?????????????????????# """ # #?????? | | ?????????????????????# """ # #?????? | | ?????????????????????# """ # #?????? | | ?????????????????????# # #?????? | +----------------------------------------------------+ Best States ------------- Heat Dissipation 31 Energy Generation 14 Energy Capacity 140 Matter Stores 300 Matter Capacity 300 Sight Range 16 Terrain Scan Density 10 Armor Coverage 150 Evasion (%) 59 Item Schematics ----------------- None Robot Schematics ------------------ None Fabricated ------------ Nothing Alien Tech Used ----------------- None Achievements -------------- None Challenges ------------ None Game ------ Seed HypercooledSmallCycler Manual? 0 Play Time 00:16:28 Cumulative 42.8 hours Start 2024.04.25 @ 13:08:14 End 2024.04.25 @ 13:24:10 Sessions 1 Manual Loads 0 Difficulty Rogue Special Mode None Game No. 70 Rogue 54 Adventurer 16 Explorer 0 Win Type - Total 0 Types 0/0/0/0/0/0/0/0/0 Lore% 14 Gallery% 32 Achievement% 24 Wizard Run 0 Options --------- Layout 2 ASCII 0 Keyboard 0 Movement Mouse Keybinds 0 Fullscreen 2 Font 24/Smallcaps Map View 50x44 Zoom Use 0% Tactical HUD 1 Map Filters NONE Filters NONE Steam 1 RUN: d39e7ddf-4564-4999-80c1-2021416100b1